fUST/lending_fUST_20250110
["ID","MTS","AMOUNT","RATE_DAILY","PERIOD"]
[348348555,1736459458143,-500.0,0.00022172,3]
[348348556,1736459458153,-500.0,0.00022172,3]
[348348557,1736459458162,-229.59,0.00022173,3]
[348348558,1736459458171,-500.0,0.00022173,3]
[348348559,1736459458180,-500.0,0.00022173,3]
[348348560,1736459458190,-500.0,0.00022173,3]
[348348561,1736459458199,-500.0,0.00022173,3]
[348348562,1736459458208,-684.55,0.00022173,3]
[348348563,1736459458218,-11607.12,0.00022173,3]
[348348564,1736459458227,-891.9,0.00022174,3]
[348348565,1736459458236,-500.0,0.00022174,3]
[348348566,1736459458246,-1426.85,0.00022174,3]
[348348567,1736459458255,-500.0,0.00022175,3]
[348348568,1736459458264,-198.03,0.00022175,3]
[348348569,1736459458273,-151.0,0.00022176,7]
[348348570,1736459458282,-151.0,0.00022176,7]
[348348571,1736459458291,-2437.74,0.00022178,3]
[348348572,1736459458300,-500.0,0.00022178,3]
[348348573,1736459458311,-1569.56,0.00022179,3]
[348348574,1736459458320,-779.29,0.00022191,3]
[348348575,1736459458329,-153.0,0.00022247,2]
[348348576,1736459458339,-306.0,0.00022247,2]
[348348577,1736459458348,-496.64189245,0.00022379,2]
[348348578,1736459458357,-151.0,0.000224,8]
[348348579,1736459458367,-600.0,0.00022403,2]
[348348580,1736459458376,-784.37,0.00022446,2]
[348348581,1736459458386,-1564.79,0.00022446,3]
[348348582,1736459458395,-500.0,0.00022446,3]
[348348583,1736459458404,-500.0,0.00022446,3]
[348348584,1736459458414,-721.24,0.00022446,3]
[348348585,1736459458424,-500.0,0.00022446,3]
[348348586,1736459458433,-500.0,0.00022446,3]
[348348587,1736459458442,-500.0,0.00022447,3]
[348348588,1736459458452,-500.0,0.00022447,3]
[348348589,1736459458462,-500.0,0.00022447,3]
[348348590,1736459458471,-527.69543813,0.00022447,3]
[348348591,1736459458481,-684.55,0.00022447,3]
[348348592,1736459458545,-11607.12,0.00022447,3]
[348348593,1736459458555,-891.9,0.00022448,3]
[348348594,1736459458565,-500.0,0.00022448,3]
[348348595,1736459458575,-1426.85,0.00022448,3]
[348348596,1736459458584,-500.0,0.00022449,3]
[348348597,1736459458594,-257.121789,0.00022449,7]
[348348598,1736459458603,-257.121789,0.00022449,7]
[348348599,1736459458612,-151.0,0.00022449,7]
[348348600,1736459458621,-151.0,0.00022449,7]
[348348601,1736459458631,-151.0,0.0002245,7]
[348348602,1736459458640,-2437.74,0.00022452,3]
[348348603,1736459458650,-500.0,0.00022452,3]
[348348604,1736459458659,-1569.56,0.00022453,3]
[348348605,1736459458669,-587.0,0.00022459,2]
[348348606,1736459458678,-779.29,0.00022465,3]
[348348607,1736459458688,-151.0,0.000225,5]
[348348608,1736459458698,-20000.6065868,0.000225,2]
[348348609,1736459458707,-151.0,0.000225,9]
[348348610,1736459458716,-902.153243,0.000225,7]
[348348611,1736459458726,-902.153243,0.000225,7]
[348348612,1736459458735,-151.0,0.000225,7]
[348348613,1736459458745,-152.32942,0.000225,7]
[348348614,1736459458755,-152.32942,0.000225,7]
[348348615,1736459458764,-3348.25145654,0.000226,3]
[348348618,1736459541965,966.27961074,0.00025,120]
[348348619,1736459679995,164.490884,0.00013973,2]
[348348620,1736459849724,693.23263998,0.00025,120]
[348348628,1736460159496,398.95524306,0.00025,120]
[348348635,1736460428108,-170.6858273,0.00018495,2]
[348348636,1736460428130,-982.56427608,0.00019176,2]
[348348637,1736460429135,-2003.43572392,0.00019176,2]
[348348638,1736460429156,-168.9,0.00019177,2]
[348348639,1736460429178,-318.24212311,0.00019177,2]
[348348640,1736460429202,-500.0,0.00019177,2]
[348348641,1736460429226,-500.0,0.00019177,2]
[348348642,1736460429249,-500.0,0.00019177,2]
[348348643,1736460429271,-288.43899919,0.00019177,2]
[348348644,1736460429294,-500.0,0.00019177,2]
[348348645,1736460429317,-296.6435288,0.00019177,2]
[348348646,1736460434089,-203.3564712,0.00019177,2]
[348348647,1736460434112,-500.0,0.00019177,2]
[348348648,1736460434135,-554.5357288,0.00019177,2]
[348348649,1736460439099,-30.70557672,0.00019177,2]
[348348650,1736460439126,-514.51679134,0.00019177,2]
[348348651,1736460439257,-188.64384292,0.00019178,2]
[348348655,1736460470214,673.47649848,0.00025,120]
[348348720,1736460632147,-165.51116084,0.00019078,2]
[348348722,1736460632157,-300.0,0.00019177,2]
[348348724,1736460632166,-500.0,0.00019178,2]
[348348726,1736460632176,-500.0,0.00019178,2]
[348348728,1736460632185,-500.0,0.00019178,2]
[348348729,1736460632198,-500.0,0.00019178,2]
[348348731,1736460632207,-500.0,0.00019178,2]
[348348734,1736460632218,-500.0,0.00019178,2]
[348348736,1736460632228,-500.0,0.00019178,2]
[348348738,1736460632237,-500.0,0.00019178,2]
[348348740,1736460632246,-500.0,0.00019178,2]
[348348742,1736460632256,-500.0,0.00019178,2]
[348348744,1736460632265,-500.0,0.00019178,2]
[348348746,1736460632274,-500.0,0.00019178,2]
[348348748,1736460632284,-500.0,0.00019178,2]
[348348750,1736460632294,-500.0,0.00019178,2]
[348348752,1736460632304,-500.0,0.00019178,2]
[348348754,1736460632312,-500.0,0.00019178,2]
[348348756,1736460632323,-500.0,0.00019178,2]
[348348758,1736460632332,-500.0,0.00019178,2]
[348348760,1736460632342,-500.0,0.00019178,2]
[348348762,1736460632351,-500.0,0.00019178,2]
[348348764,1736460632361,-500.0,0.00019178,2]
[348348766,1736460632370,-500.0,0.00019178,2]
[348348767,1736460632380,-500.0,0.00019178,2]
[348348770,1736460632398,-500.0,0.00019178,2]
[348348773,1736460632410,-500.0,0.00019178,2]
[348348775,1736460632421,-500.0,0.00019178,2]
[348348777,1736460632430,-528.85896007,0.00019178,2]
[348348779,1736460632440,-189.22367779,0.00019178,2]
[348349293,1736460637825,-310.77632221,0.00019178,2]
[348349295,1736460637835,-541.96812492,0.00019178,2]
[348349297,1736460637845,-500.0,0.00019178,2]
[348349299,1736460637855,-500.0,0.00019178,2]
[348349301,1736460637864,-500.0,0.00019178,2]
[348349303,1736460637874,-500.0,0.00019178,2]
[348349305,1736460637884,-500.0,0.00019178,2]
[348349307,1736460637893,-500.0,0.00019178,2]
[348349309,1736460637902,-500.0,0.00019178,2]
[348349311,1736460637912,-500.0,0.00019178,2]
[348349313,1736460637922,-462.0582014,0.00019178,2]
[348349315,1736460637931,-500.0,0.00019178,2]
[348349317,1736460637940,-500.0,0.00019178,2]
[348349319,1736460637953,-500.0,0.00019178,2]
[348349321,1736460637962,-500.0,0.00019178,2]
[348349323,1736460637972,-500.0,0.00019178,2]
[348349325,1736460637981,-500.0,0.00019178,2]
[348349327,1736460637991,-500.0,0.00019178,2]
[348349329,1736460638000,-500.0,0.00019178,2]
[348349331,1736460638010,-500.0,0.00019178,2]
[348349333,1736460638020,-644.72274726,0.00019178,2]
[348349336,1736460638030,-500.0,0.00019178,2]
[348349338,1736460638039,-500.0,0.00019178,2]
[348349340,1736460638049,-245.21219217,0.00019178,2]
[348349342,1736460638059,-500.0,0.00019178,2]
[348349344,1736460638069,-500.0,0.00019178,2]
[348349346,1736460638079,-500.0,0.00019178,2]
[348349348,1736460638089,-500.0,0.00019178,2]
[348349350,1736460638099,-500.0,0.00019178,2]
[348349352,1736460638108,-500.0,0.00019178,2]
[348349354,1736460638118,-500.0,0.00019178,2]
[348349356,1736460638127,-515.42,0.00019178,2]
[348349358,1736460638138,-500.0,0.00019178,2]
[348349360,1736460638148,-500.0,0.00019178,2]
[348349362,1736460638157,-500.0,0.00019178,2]
[348349364,1736460638167,-500.0,0.00019178,2]
[348349366,1736460638176,-500.0,0.00019178,2]
[348349368,1736460638186,-500.0,0.00019178,2]
[348349370,1736460638197,-500.0,0.00019178,2]
[348349372,1736460638206,-500.0,0.00019178,2]
[348349374,1736460638215,-500.0,0.00019178,2]
[348349376,1736460638225,-835.14,0.00019178,2]
[348349378,1736460638235,-500.0,0.00019178,2]
[348349380,1736460638245,-500.0,0.00019178,2]
[348349382,1736460638255,-644.87480855,0.00019178,2]
[348349384,1736460638264,-1586.38,0.00019178,2]
[348349386,1736460638274,-500.0,0.00019178,2]
[348349388,1736460638283,-500.0,0.00019178,2]
[348349390,1736460638293,-500.0,0.00019178,2]
[348349392,1736460638303,-500.0,0.00019178,2]
[348349394,1736460638313,-500.0,0.00019178,2]
[348349397,1736460638323,-500.0,0.00019178,2]
[348349399,1736460638332,-500.0,0.00019178,2]
[348349401,1736460638341,-500.0,0.00019178,2]
[348349403,1736460638351,-500.0,0.00019178,2]
[348349404,1736460638360,-500.0,0.00019178,2]
[348349406,1736460638369,-500.0,0.00019178,2]
[348349409,1736460638379,-500.0,0.00019178,2]
[348349410,1736460638388,-500.0,0.00019178,2]
[348349413,1736460638397,-500.0,0.00019178,2]
[348349415,1736460638406,-500.0,0.00019178,2]
[348349417,1736460638416,-500.0,0.00019178,2]
[348349418,1736460638426,-500.0,0.00019178,2]
[348349421,1736460638436,-500.0,0.00019178,2]
[348349423,1736460638445,-500.0,0.00019178,2]
[348349425,1736460638455,-500.0,0.00019178,2]
[348349427,1736460638464,-500.0,0.00019178,2]
[348349429,1736460638474,-500.0,0.00019178,2]
[348349430,1736460638483,-500.0,0.00019178,2]
[348349432,1736460638492,-500.0,0.00019178,2]
[348349434,1736460638505,-500.0,0.00019178,2]
[348349436,1736460638515,-500.0,0.00019178,2]
[348349438,1736460638524,-500.0,0.00019178,2]
[348349441,1736460638535,-500.0,0.00019178,2]
[348349442,1736460638544,-500.0,0.00019178,2]
[348349445,1736460638555,-533.15,0.00019178,2]
[348349446,1736460638564,-500.0,0.00019178,2]
[348349449,1736460638574,-500.0,0.00019178,2]
[348349451,1736460638583,-500.0,0.00019178,2]
[348349452,1736460638593,-700.72,0.00019178,2]
[348349455,1736460638603,-500.0,0.00019178,2]
[348349457,1736460638612,-500.0,0.00019178,2]
[348349459,1736460638622,-500.0,0.00019178,2]
[348349461,1736460638632,-500.0,0.00019178,2]
[348349463,1736460638642,-500.0,0.00019178,2]
[348349465,1736460638651,-500.0,0.00019178,2]
[348349467,1736460638660,-500.0,0.00019178,2]
[348349469,1736460638670,-500.0,0.00019178,2]
[348349471,1736460638679,-743.26,0.00019178,2]
[348349473,1736460638689,-500.0,0.00019178,2]
[348349475,1736460638699,-500.0,0.00019178,2]
[348349477,1736460638709,-10583.93,0.00019178,2]
[348349479,1736460638718,-500.0,0.00019178,2]
[348349481,1736460638727,-500.0,0.00019178,2]
[348349482,1736460638737,-500.0,0.00019178,2]
[348349483,1736460638746,-500.0,0.00019178,2]
[348349484,1736460638755,-276.4202284,0.00019178,2]
[348349485,1736460638764,-165.190387,0.00019319,2]
[348349486,1736460638774,-500.0,0.00019451,3]
[348349487,1736460638784,-500.0,0.00019452,3]
[348349488,1736460638793,-500.0,0.00019452,3]
[348349489,1736460638802,-500.0,0.00019452,3]
[348349490,1736460638812,-596.03546013,0.00019452,3]
[348349491,1736460638821,-500.0,0.00019452,3]
[348349492,1736460638830,-557.12807984,0.00019452,3]
[348349493,1736460638839,-500.0,0.00019452,3]
[348349494,1736460638848,-500.0,0.00019452,3]
[348349495,1736460638857,-500.0,0.00019452,3]
[348349496,1736460638867,-500.0,0.00019452,3]
[348349497,1736460638876,-500.0,0.00019452,3]
[348349498,1736460638886,-500.0,0.00019452,3]
[348349499,1736460638895,-500.0,0.00019452,3]
[348349500,1736460638904,-500.0,0.00019452,3]
[348349501,1736460638913,-500.0,0.00019452,3]
[348349502,1736460638922,-500.0,0.00019452,3]
[348349504,1736460638931,-500.0,0.00019452,3]
[348349505,1736460638941,-500.0,0.00019452,3]
[348349506,1736460638952,-500.0,0.00019452,3]
[348349509,1736460638962,-500.0,0.00019452,3]
[348349511,1736460638972,-500.0,0.00019452,3]
[348349512,1736460638982,-500.0,0.00019452,3]
[348349515,1736460638991,-500.0,0.00019452,3]
[348349517,1736460639002,-500.0,0.00019452,3]
[348349519,1736460639011,-500.0,0.00019452,3]
[348349520,1736460639021,-500.0,0.00019452,3]
[348349523,1736460639031,-547.83,0.00019452,3]
[348349525,1736460639040,-500.0,0.00019452,3]
[348349526,1736460639050,-500.0,0.00019452,3]
[348349529,1736460639060,-500.0,0.00019452,3]
[348349531,1736460639069,-500.0,0.00019452,3]
[348349542,1736460639079,-556.80348851,0.00019452,3]
[348349545,1736460639182,-500.0,0.00019452,3]
[348349546,1736460639192,-500.0,0.00019452,3]
[348349548,1736460639203,-500.0,0.00019452,3]
[348349550,1736460639213,-500.0,0.00019452,3]
[348349552,1736460639222,-500.0,0.00019452,3]
[348349554,1736460639232,-500.0,0.00019452,3]
[348349557,1736460639242,-154.10105987,0.00019452,3]
[348349559,1736460639251,-500.0,0.00019452,3]
[348349561,1736460639261,-500.0,0.00019452,3]
[348349563,1736460639271,-500.0,0.00019452,3]
[348349565,1736460639281,-500.0,0.00019452,3]
[348349567,1736460639290,-500.0,0.00019452,3]
[348349569,1736460639299,-500.0,0.00019452,3]
[348349571,1736460639309,-387.74557819,0.00019452,3]
[348349574,1736460639319,-500.0,0.00019452,3]
[348349576,1736460639329,-500.0,0.00019452,3]
[348349578,1736460639339,-500.0,0.00019452,3]
[348349580,1736460639349,-500.0,0.00019452,3]
[348349583,1736460639359,-500.0,0.00019452,3]
[348349585,1736460639368,-500.0,0.00019452,3]
[348349587,1736460639377,-500.0,0.00019452,3]
[348349589,1736460639387,-348.58619682,0.00019452,3]
[348349591,1736460639396,-500.0,0.00019452,3]
[348349593,1736460639405,-835.14,0.00019452,2]
[348349595,1736460639415,-500.0,0.00019452,3]
[348349597,1736460639425,-500.0,0.00019452,3]
[348349599,1736460639434,-1586.38,0.00019452,3]
[348349601,1736460639444,-500.0,0.00019452,3]
[348349603,1736460639456,-500.0,0.00019452,3]
[348349605,1736460639466,-500.0,0.00019452,3]
[348349608,1736460639476,-500.0,0.00019452,3]
[348349610,1736460639486,-500.0,0.00019452,3]
[348349612,1736460639498,-621.25,0.00019452,3]
[348349614,1736460639507,-500.0,0.00019452,3]
[348349616,1736460639517,-500.0,0.00019452,3]
[348349618,1736460639527,-224.61220669,0.00019452,3]
[348349620,1736460639538,-500.0,0.00019452,3]
[348349622,1736460639547,-500.0,0.00019452,3]
[348349624,1736460639556,-500.0,0.00019452,3]
[348349626,1736460639566,-500.0,0.00019452,3]
[348349628,1736460639575,-500.0,0.00019452,3]
[348349630,1736460639585,-500.0,0.00019452,3]
[348349632,1736460639595,-500.0,0.00019452,3]
[348349634,1736460639604,-500.0,0.00019452,3]
[348349636,1736460639613,-500.0,0.00019452,3]
[348349638,1736460639623,-500.0,0.00019452,3]
[348349641,1736460639633,-508.31435351,0.00019452,3]
[348349642,1736460639643,-500.0,0.00019452,3]
[348349645,1736460639655,-500.0,0.00019452,3]
[348349647,1736460639664,-533.15,0.00019452,3]
[348349648,1736460639675,-500.0,0.00019452,3]
[348349650,1736460639685,-500.0,0.00019452,3]
[348349652,1736460639694,-500.0,0.00019452,3]
[348349654,1736460639705,-700.72,0.00019452,3]
[348349656,1736460639715,-500.0,0.00019452,3]
[348349659,1736460639724,-500.0,0.00019452,3]
[348349661,1736460639733,-500.0,0.00019452,3]
[348349662,1736460639743,-500.0,0.00019452,3]
[348349665,1736460639754,-500.0,0.00019452,3]
[348349666,1736460639763,-500.0,0.00019452,3]
[348349668,1736460639772,-500.0,0.00019452,3]
[348349671,1736460639783,-500.0,0.00019452,3]
[348349672,1736460639792,-743.26,0.00019452,3]
[348349674,1736460639801,-500.0,0.00019452,3]
[348349676,1736460639810,-10583.93,0.00019452,3]
[348349679,1736460639819,-500.0,0.00019452,3]
[348349680,1736460639828,-500.0,0.00019452,3]
[348349683,1736460639838,-500.0,0.00019452,3]
[348349684,1736460639848,-500.0,0.00019452,3]
[348349686,1736460639857,-458.75831851,0.00019725,2]
[348349689,1736460639866,-500.0,0.00019726,3]
[348349691,1736460639876,-504.69611081,0.00019726,3]
[348349693,1736460639885,-500.0,0.00019726,3]
[348349694,1736460639895,-500.0,0.00019726,3]
[348349696,1736460639906,-500.0,0.00019726,3]
[348349698,1736460639916,-522.47,0.00019726,3]
[348349700,1736460639925,-516.29,0.00019726,3]
[348349702,1736460639935,-500.0,0.00019726,3]
[348349705,1736460639946,-500.0,0.00019726,3]
[348349706,1736460639957,-230.37426868,0.00019726,3]
[348349708,1736460639967,-500.0,0.00019726,3]
[348349710,1736460639977,-500.0,0.00019726,3]
[348349712,1736460639986,-500.0,0.00019726,3]
[348349714,1736460639995,-500.0,0.00019726,3]
[348349716,1736460640005,-500.0,0.00019726,3]
[348349718,1736460640014,-500.0,0.00019726,3]
[348349720,1736460640023,-500.0,0.00019726,3]
[348349722,1736460640033,-500.0,0.00019726,3]
[348349724,1736460640042,-500.0,0.00019726,3]
[348349726,1736460640051,-500.0,0.00019726,3]
[348349728,1736460640061,-500.0,0.00019726,3]
[348349730,1736460640070,-500.0,0.00019726,3]
[348349732,1736460640080,-484.76901842,0.00019726,3]
[348349735,1736460640098,-15.23098158,0.00019726,3]
[348349737,1736460640107,-500.0,0.00019726,3]
[348349739,1736460640117,-500.0,0.00019726,3]
[348349741,1736460640126,-500.0,0.00019726,3]
[348349743,1736460640135,-500.0,0.00019726,3]
[348349745,1736460640145,-500.0,0.00019726,3]
[348349747,1736460640154,-500.0,0.00019726,3]
[348349749,1736460640163,-500.0,0.00019726,3]
[348349751,1736460640172,-500.0,0.00019726,3]
[348349753,1736460640181,-500.0,0.00019726,3]
[348349755,1736460640190,-41.89912092,0.00019726,3]
[348349757,1736460640204,-458.10087908,0.00019726,3]
[348349759,1736460640213,-500.0,0.00019726,3]
[348349761,1736460640223,-500.0,0.00019726,3]
[348349763,1736460640232,-341.5770432,0.00019726,3]
[348349765,1736460640241,-500.0,0.00019726,3]
[348349767,1736460640251,-500.0,0.00019726,3]
[348349769,1736460640260,-500.0,0.00019726,3]
[348349772,1736460640272,-500.0,0.00019726,3]
[348349774,1736460640281,-500.0,0.00019726,3]
[348349776,1736460640290,-835.14,0.00019726,2]
[348349778,1736460640300,-500.0,0.00019726,3]
[348349780,1736460640310,-311.35615708,0.00019726,3]
[348349782,1736460640319,-1586.38,0.00019726,3]
[348349784,1736460640329,-500.0,0.00019726,3]
[348349786,1736460640338,-384.10064412,0.00019726,3]
[348349788,1736460640347,-124.60733786,0.00019726,3]
[348349790,1736460640360,-525.15266214,0.00019726,3]
[348349792,1736460640369,-241.48719702,0.00019726,3]
[348349794,1736460640378,-574.70776609,0.00019726,3]
[348349796,1736460640387,-500.0,0.00019726,3]
[348349798,1736460640396,-500.0,0.00019726,3]
[348349800,1736460640405,-500.0,0.00019726,3]
[348349802,1736460640415,-500.0,0.00019726,3]
[348349804,1736460640424,-500.0,0.00019726,3]
[348349806,1736460640435,-500.0,0.00019726,3]
[348349808,1736460640445,-500.0,0.00019726,3]
[348349810,1736460640457,-500.0,0.00019726,3]
[348349812,1736460640466,-500.0,0.00019726,3]
[348349814,1736460640476,-578.51341343,0.00019726,3]
[348349816,1736460640486,-500.0,0.00019726,3]
[348349818,1736460640497,-500.0,0.00019726,3]
[348349820,1736460640507,-500.0,0.00019726,3]
[348349822,1736460640517,-533.15,0.00019726,3]
[348349824,1736460640526,-500.0,0.00019726,3]
[348349827,1736460640535,-500.0,0.00019726,3]
[348349828,1736460640546,-500.0,0.00019726,3]
[348349831,1736460640555,-700.72,0.00019726,3]
[348349832,1736460640564,-500.0,0.00019726,3]
[348349835,1736460640575,-500.0,0.00019726,3]
[348349837,1736460640584,-500.0,0.00019726,3]
[348349839,1736460640593,-500.0,0.00019726,3]
[348349841,1736460640603,-500.0,0.00019726,3]
[348349843,1736460640612,-500.0,0.00019726,3]
[348349845,1736460640621,-500.0,0.00019726,3]
[348349847,1736460640631,-500.0,0.00019726,3]
[348349849,1736460640640,-743.26,0.00019726,3]
[348349851,1736460640649,-10583.93,0.00019726,3]
[348349853,1736460640659,-500.0,0.00019726,3]
[348349855,1736460640668,-500.0,0.00019726,3]
[348349856,1736460640677,-165.5111608,0.00019776,2]
[348349858,1736460640687,-500.0,0.00019968,2]
[348349860,1736460640696,-3629.0,0.0002,2]
[348349862,1736460640708,-500.0,0.0002,3]
[348349864,1736460640717,-500.0,0.0002,3]
[348349866,1736460640726,-500.0,0.0002,3]
[348349868,1736460640736,-500.0,0.0002,3]
[348349870,1736460640745,-500.0,0.0002,3]
[348349872,1736460640755,-500.0,0.0002,3]
[348349874,1736460640764,-500.0,0.0002,3]
[348349877,1736460640774,-500.0,0.0002,3]
[348349879,1736460640783,-500.0,0.0002,3]
[348349881,1736460640793,-500.0,0.0002,3]
[348349883,1736460640802,-500.0,0.0002,3]
[348349885,1736460640811,-500.0,0.0002,3]
[348349887,1736460640820,-500.0,0.0002,3]
[348349889,1736460640829,-500.0,0.0002,3]
[348349891,1736460640839,-197.85,0.0002,3]
[348349893,1736460640848,-500.0,0.0002,3]
[348349895,1736460640857,-500.0,0.0002,3]
[348349897,1736460640867,-500.0,0.0002,3]
[348349899,1736460640876,-500.0,0.0002,3]
[348349901,1736460640885,-835.14,0.0002,2]
[348349903,1736460640895,-500.0,0.0002,3]
[348349905,1736460640905,-1586.38,0.0002,3]
[348349907,1736460640915,-500.0,0.0002,3]
[348349909,1736460640924,-589.17,0.0002,3]
[348349911,1736460640934,-234.72,0.0002,3]
[348349913,1736460640943,-500.0,0.0002,3]
[348349915,1736460640956,-256.96,0.0002,3]
[348349917,1736460640964,-533.15,0.0002,3]
[348349919,1736460640974,-500.0,0.0002,3]
[348349921,1736460640983,-505.03023111,0.0002,3]
[348349923,1736460640992,-700.72,0.0002,3]
[348349925,1736460641002,-500.0,0.0002,3]
[348349927,1736460641012,-500.0,0.0002,3]
[348349929,1736460641021,-500.0,0.0002,3]
[348349931,1736460641031,-743.26,0.0002,3]
[348349933,1736460641040,-10583.93,0.0002,3]
[348349935,1736460641050,-500.0,0.0002,3]
[348349937,1736460641059,-500.0,0.0002,3]
[348349939,1736460641068,-500.0,0.00020076,2]
[348349941,1736460641078,-500.0,0.00020076,2]
[348349943,1736460641087,-500.0,0.00020252,3]
[348349946,1736460641098,-500.0,0.00020253,3]
[348349948,1736460641107,-500.0,0.00020253,3]
[348349949,1736460641117,-500.0,0.00020253,3]
[348349952,1736460641126,-545.56,0.00020253,3]
[348349954,1736460641135,-500.0,0.00020253,3]
[348349956,1736460641145,-500.0,0.00020253,3]
[348349958,1736460641154,-198.51168039,0.00020254,3]
[348349959,1736460641163,-500.0,0.00020254,3]
[348349960,1736460641174,-500.0,0.00020254,3]
[348349961,1736460641260,-500.0,0.00020254,3]
[348349962,1736460641270,-500.0,0.00020254,3]
[348349963,1736460641280,-500.0,0.00020254,3]
[348349964,1736460641289,-500.0,0.00020254,3]
[348349965,1736460641299,-500.0,0.00020254,3]
[348349966,1736460641308,-500.0,0.00020254,3]
[348349967,1736460641317,-500.0,0.00020254,3]
[348349968,1736460641327,-500.0,0.00020254,3]
[348349969,1736460641337,-500.0,0.00020254,3]
[348349970,1736460641347,-1300.48,0.00020255,3]
[348349971,1736460641356,-877.98,0.00020255,3]
[348349972,1736460641366,-500.0,0.00020255,3]
[348349973,1736460641375,-500.0,0.00020255,3]
[348349974,1736460641384,-500.0,0.00020255,3]
[348349975,1736460641393,-500.0,0.00020255,3]
[348349976,1736460641403,-500.0,0.00020255,3]
[348349977,1736460641412,-500.0,0.00020255,3]
[348349978,1736460641421,-500.0,0.00020255,3]
[348349979,1736460641431,-272.2771766,0.00020255,3]
[348349980,1736460641440,-500.0,0.00020255,3]
[348349981,1736460641449,-500.0,0.00020255,3]
[348349982,1736460641461,-500.0,0.00020255,3]
[348349983,1736460641470,-151.0,0.00020256,2]
[348349984,1736460641479,-152.900636,0.00020256,2]
[348349985,1736460641489,-1819.43,0.00020256,3]
[348349986,1736460641502,-500.0,0.00020256,3]
[348349987,1736460641511,-500.0,0.00020256,3]
[348349988,1736460641520,-500.0,0.00020256,3]
[348349989,1736460641530,-500.0,0.00020257,3]
[348349990,1736460641540,-507.69493432,0.00020257,3]
[348349992,1736460641550,-1671.02,0.0002026,3]
[348349994,1736460641559,-500.0,0.00020273,3]
[348349995,1736460641568,-211.65,0.00020273,3]
[348349996,1736460641578,-500.0,0.00020273,3]
[348349997,1736460641587,-500.0,0.00020273,3]
[348349998,1736460641596,-500.0,0.00020273,3]
[348349999,1736460641605,-500.0,0.00020273,3]
[348350000,1736460641614,-500.0,0.00020273,3]
[348350001,1736460641624,-640.55462002,0.00020273,3]
[348350002,1736460641633,-500.0,0.00020273,3]
[348350003,1736460641642,-500.0,0.00020273,3]
[348350004,1736460641651,-500.0,0.00020273,3]
[348350005,1736460641662,-835.14,0.00020273,2]
[348350006,1736460641671,-500.0,0.00020273,3]
[348350007,1736460641682,-1586.38,0.00020273,3]
[348350008,1736460641691,-500.0,0.00020273,3]
[348350009,1736460641703,-500.0,0.00020273,3]
[348350010,1736460641712,-533.15,0.00020273,3]
[348350011,1736460641722,-500.0,0.00020273,3]
[348350012,1736460641731,-700.72,0.00020273,3]